bitfinex-derivatives/quotes_BTCF0:USTF0_20241104
["timestamp","ask_amount","ask_price","bid_price","bid_amount"]
[1730683803017,0.04315964,68900.0,68888.0,0.13960881]
[1730683803204,0.3608,68902.0,68888.0,0.13960881]
[1730683803407,0.3608,68902.0,68898.0,0.072603]
[1730683803612,0.13960881,68900.0,68898.0,0.072603]
[1730683803807,0.13960881,68900.0,68892.0,0.072609]
[1730683804112,0.21221781,68893.0,68882.0,0.15905267]
[1730683804311,0.13960881,68893.0,68882.0,0.1016776]
[1730683804513,0.072611,68891.0,68888.0,0.072613]
[1730683804819,0.072614,68888.0,68884.0,0.072617]
[1730683805010,0.13960881,68889.0,68885.0,0.072616]
[1730683805210,0.13960881,68889.0,68882.0,0.0511776]
[1730683805518,0.13960881,68889.0,68886.0,0.072616]
[1730683806219,0.072617,68885.0,68882.0,0.0071776]
[1730683806427,0.13960881,68884.0,68882.0,0.0071776]
[1730683806716,0.13960881,68884.0,68883.0,0.072619]
[1730683807618,0.21766357,68934.0,68882.0,0.0071776]
[1730683807619,0.13960881,68895.0,68882.0,0.0071776]
[1730683807828,0.072605,68896.0,68883.0,0.072619]
[1730683808121,0.072605,68896.0,68893.0,0.072608]
[1730683808515,0.05197783,68899.0,68883.0,0.082619]
[1730683808707,0.00217783,68899.0,68897.0,0.072603]
[1730683808915,0.00217783,68899.0,68886.0,0.3608]
[1730683809115,0.072603,68898.0,68893.0,0.072608]
[1730683809520,0.13960881,68895.0,68893.0,0.072608]
[1730683810220,0.14560881,68895.0,68893.0,0.072608]
[1730683810416,0.50040881,68894.0,68886.0,0.05737507]
[1730683810621,0.50040881,68894.0,68883.0,0.001]
[1730683810622,0.072617,68885.0,68883.0,0.072619]
[1730683810811,0.13960881,68888.0,68884.0,0.072618]
[1730683810812,0.21222281,68888.0,68884.0,0.072618]
[1730683811015,0.072616,68886.0,68884.0,0.072618]
[1730683811317,0.072619,68883.0,68882.0,0.0021776]
[1730683811518,0.21222781,68883.0,68882.0,0.0021776]
[1730683814120,0.21222781,68883.0,68882.0,0.0041776]
[1730683814517,0.13960881,68888.0,68885.0,0.072617]
[1730683814716,0.072612,68890.0,68888.0,0.072614]
[1730683815020,0.14178664,68899.0,68884.0,0.13960881]
[1730683815319,0.13960881,68894.0,68893.0,0.072608]
[1730683816521,0.13960881,68894.0,68884.0,0.05737507]
[1730683816728,0.072619,68883.0,68882.0,0.05837507]
[1730683817023,0.072619,68883.0,68882.0,0.001]
[1730683817521,0.0486,68884.0,68882.0,0.072619]
[1730683817709,0.0486,68884.0,68874.0,0.05737507]
[1730683818112,0.001,68883.0,68882.0,0.08062]
[1730683818715,0.3608,68888.0,68887.0,0.072615]
[1730683819226,0.072608,68894.0,68882.0,0.05737507]
[1730683819525,0.072608,68894.0,68890.0,0.072611]
[1730683820319,0.13960881,68896.0,68893.0,0.072608]
[1730683820631,0.00217783,68899.0,68898.0,0.072603]
[1730683822323,0.00217783,68899.0,68898.0,0.11551715]
[1730683822527,0.01117783,68899.0,68898.0,0.073603]
[1730683823728,0.01717783,68899.0,68898.0,0.074603]
[1730683824318,0.015,68899.0,68898.0,0.64965181]
[1730683824518,0.433379,68921.0,68900.0,0.072601]
[1730683824733,0.072581,68919.0,68910.0,0.07259]
[1730683824920,0.36200001,68921.0,68911.0,0.0524]
[1730683825122,0.36200001,68921.0,68920.0,0.07258]
[1730683825123,0.00120001,68921.0,68920.0,0.07258]
[1730683825324,0.072569,68931.0,68918.0,0.04289052]
[1730683825522,0.13960881,68934.0,68930.0,0.072569]
[1730683825723,0.21217481,68934.0,68930.0,0.072569]
[1730683825922,0.072567,68933.0,68930.0,0.072569]
[1730683826127,0.072569,68931.0,68917.0,0.04289052]
[1730683826325,0.13960881,68934.0,68929.0,0.07257]
[1730683826630,0.21217481,68934.0,68929.0,0.07257]
[1730683826926,0.072568,68932.0,68929.0,0.07257]
[1730683827127,0.36297707,68935.0,68922.0,0.3608]
[1730683827329,0.00217707,68935.0,68934.0,0.072565]
[1730683828127,0.12304,68950.0,68934.0,0.072565]
[1730683828330,0.3608,68951.0,68937.0,0.3608]
[1730683828532,0.07255,68949.0,68943.0,0.072555]
[1730683828723,0.07255,68949.0,68937.0,0.3608]
[1730683828924,0.07255,68949.0,68945.0,0.072554]
[1730683829625,0.3608,68951.0,68940.0,0.072559]
[1730683829626,0.072552,68947.0,68940.0,0.072559]
[1730683829931,0.072552,68947.0,68942.0,0.072557]
[1730683830137,0.3608,68945.0,68942.0,0.072557]
[1730683830527,0.3608,68945.0,68931.0,1.5]
[1730683830528,0.433354,68945.0,68931.0,1.5]
[1730683830731,0.20913875,68941.0,68931.0,1.5]
[1730683831036,0.20913875,68941.0,68937.0,0.001]
[1730683831626,0.20913875,68941.0,68929.0,0.36297605]
[1730683831933,0.3608,68938.0,68931.0,0.001]
[1730683832143,0.33589875,68940.0,68934.0,0.072565]
[1730683832330,0.07256,68939.0,68934.0,0.072565]
[1730683832529,0.26333875,68940.0,68931.0,0.3618]
[1730683832530,0.072561,68938.0,68931.0,0.3618]
[1730683832733,0.126661,68938.0,68931.0,0.3618]
[1730683832934,0.126661,68938.0,68932.0,0.072567]
[1730683833126,0.0541,68938.0,68934.0,0.072565]
[1730683833326,0.0541,68938.0,68937.0,0.072562]
[1730683833531,0.3608,68945.0,68931.0,0.3618]
[1730683833730,0.0542,68947.0,68931.0,0.3608]
[1730683833936,0.0542,68947.0,68938.0,0.3608]
[1730683834136,0.0542,68947.0,68944.0,0.072554]
[1730683834836,0.072556,68943.0,68939.0,0.072559]
[1730683835032,0.126752,68947.0,68940.0,0.072559]
[1730683835232,0.126752,68947.0,68931.0,0.3618]
[1730683835233,0.126752,68947.0,68944.0,0.001]
[1730683835641,0.433354,68945.0,68944.0,0.001]
[1730683835939,0.433354,68945.0,68944.0,0.002]
[1730683836546,0.868474,68945.0,68944.0,0.002]
[1730683836738,0.79592,68945.0,68931.0,0.433368]
[1730683836936,0.433354,68945.0,68944.0,0.001]
[1730683837131,0.64249275,68945.0,68944.0,0.001]
[1730683837336,1.07761275,68945.0,68944.0,0.002]
[1730683839831,1.35026842,68945.0,68929.0,0.00217605]
[1730683840141,0.072565,68934.0,68929.0,0.00217605]
[1730683840942,0.072562,68937.0,68932.0,0.072567]
[1730683841242,0.072562,68937.0,68929.0,0.00317605]
[1730683841243,0.40816967,68945.0,68929.0,0.00317605]
[1730683841435,0.02803673,68944.0,68938.0,0.072561]
[1730683841636,0.02803673,68943.0,68938.0,0.072561]
[1730683841845,0.3608,68945.0,68938.0,0.072561]
[1730683842142,0.10058971,68944.0,68939.0,0.07256]
[1730683842335,0.02803471,68943.0,68939.0,0.04715913]
[1730683842530,0.02803471,68942.0,68939.0,0.04715913]
[1730683842739,0.072559,68940.0,68929.0,0.00217605]
[1730683843141,0.072559,68940.0,68929.0,0.00317605]
[1730683843538,0.072559,68940.0,68935.0,0.072564]
[1730683843938,0.072559,68940.0,68938.0,0.001]
[1730683844151,0.075559,68940.0,68938.0,0.001]
[1730683844449,0.003,68940.0,68939.0,0.07256]
[1730683844639,0.006,68940.0,68939.0,0.07256]
[1730683845343,0.003,68940.0,68939.0,0.07256]
[1730683845550,0.006,68940.0,68939.0,0.07256]
[1730683845954,0.006,68940.0,68939.0,0.50772]
[1730683846244,0.0534,68960.0,68957.0,0.072541]
[1730683846448,0.02802801,68959.0,68958.0,0.07254]
[1730683846841,0.0534,68960.0,68959.0,0.072539]
[1730683847042,0.08142625,68960.0,68959.0,0.072539]
[1730683847241,0.08142616,68960.0,68959.0,0.072539]
[1730683847437,0.15396416,68960.0,68959.0,0.072539]
[1730683847638,0.02802616,68960.0,68959.0,0.072539]
[1730683847853,0.3608,68964.0,68962.0,0.072535]
[1730683848149,0.02802558,68963.0,68962.0,0.072535]
[1730683849135,0.3608,68964.0,68959.0,0.3618]
[1730683849336,0.00217605,68965.0,68963.0,0.28167375]
[1730683849549,0.00217605,68965.0,68964.0,0.127134]
[1730683850239,0.3608,68987.0,68964.0,0.4896]
[1730683850550,0.072511,68986.0,68984.0,0.072513]
[1730683850737,0.072513,68984.0,68979.0,0.072518]
[1730683850934,0.072514,68983.0,68979.0,0.072518]
[1730683851545,0.40630678,68987.0,68981.0,0.072515]
[1730683851741,0.47769677,68987.0,68981.0,0.072515]
[1730683852851,0.40518677,68987.0,68976.0,0.072521]
[1730683853048,0.3608,68980.0,68971.0,0.072526]
[1730683853351,0.07252,68977.0,68971.0,0.072526]
[1730683854056,0.3608,68980.0,68968.0,0.00217502]
[1730683854057,0.072527,68971.0,68968.0,0.00217502]
[1730683854461,0.3608,68974.0,68968.0,0.00217502]
[1730683854748,0.3608,68974.0,68968.0,0.07470402]
[1730683855145,0.3608,68974.0,68970.0,0.072527]
[1730683855444,0.04367992,68976.0,68968.0,0.00217502]
[1730683855642,0.3608,68971.0,68968.0,0.00217502]
[1730683855847,0.28166675,68969.0,68968.0,0.00317502]
[1730683856245,0.28166675,68969.0,68961.0,0.072537]
[1730683856246,0.072531,68968.0,68961.0,0.072537]
[1730683856448,0.072531,68968.0,68955.0,0.0536]
[1730683856449,0.15853125,68964.0,68955.0,0.0536]
[1730683856652,0.14413197,68960.0,68955.0,0.0536]
[1730683856844,0.10807938,68959.0,68955.0,0.0536]
[1730683857049,0.10807938,68958.0,68955.0,0.0536]
[1730683857250,0.10807938,68957.0,68956.0,0.072542]
[1730683859365,0.06354962,68957.0,68956.0,0.072542]
[1730683859559,0.14413197,68963.0,68962.0,0.072536]
[1730683859858,0.10808022,68963.0,68962.0,0.072536]
[1730683860747,0.10808022,68963.0,68962.0,0.868336]
[1730683860952,0.06355011,68963.0,68962.0,0.868336]
[1730683861148,0.04452355,68969.0,68968.0,0.07253]
[1730683861452,0.15853125,68978.0,68977.0,0.07252]
[1730683861655,0.04451966,68978.0,68974.0,0.3608]
[1730683861863,0.04451819,68977.0,68974.0,0.3608]
[1730683862157,0.04451819,68976.0,68975.0,0.072522]
[1730683862359,0.04451819,68976.0,68975.0,1.572522]
[1730683862561,0.04451819,68976.0,68975.0,2.007442]
[1730683863064,0.04451819,68976.0,68975.0,1.572522]
[1730683863261,0.3608,68981.0,68975.0,1.5]
[1730683863556,0.3608,68981.0,68980.0,0.072517]
[1730683863759,0.40531794,68981.0,68980.0,0.072517]
[1730683864264,0.40531794,68981.0,68980.0,1.98336235]
[1730683864265,0.31000024,68981.0,68980.0,1.98336235]
[1730683865376,0.3608,68993.0,68992.0,0.072504]
[1730683866559,0.3608,68993.0,68980.0,0.3608]
[1730683866754,0.20913875,68981.0,68973.0,0.04289052]
[1730683866960,0.20913875,68981.0,68972.0,0.00217467]
[1730683866961,0.072524,68973.0,68972.0,0.00217467]
[1730683867353,0.0509,68973.0,68972.0,0.00217467]
[1730683867769,0.0509,68973.0,68972.0,0.07469967]
[1730683868161,0.0509,68973.0,68972.0,0.00217467]
[1730683868357,0.123424,68973.0,68972.0,0.00217467]
[1730683868957,0.48586,68973.0,68958.0,0.04289052]
[1730683869254,0.43333,68968.0,68962.0,0.072536]
[1730683869455,0.3608,68968.0,68962.0,0.072536]
[1730683869656,0.3608,68968.0,68957.0,0.40369052]
[1730683869657,0.20913875,68967.0,68958.0,0.04289052]
[1730683869864,0.20913875,68967.0,68957.0,0.04289052]
[1730683870164,0.20913875,68967.0,68942.0,0.3608]
[1730683870165,0.072537,68961.0,68950.0,0.11543852]
[1730683870367,0.072544,68954.0,68950.0,0.11543852]
[1730683870553,0.072539,68959.0,68949.0,0.04289052]
[1730683870750,0.072539,68959.0,68953.0,0.072545]
[1730683870954,0.072539,68959.0,68957.0,0.001]
[1730683871267,0.3608,68962.0,68957.0,0.001]
[1730683871466,0.3608,68962.0,68960.0,0.072538]
[1730683871976,0.13492,68972.0,68953.0,0.20913875]
[1730683872260,0.3608,68968.0,68954.0,0.072544]
[1730683872461,0.072532,68966.0,68948.0,0.4355265]
[1730683872663,0.3608,68968.0,68955.0,0.072543]
[1730683873162,0.3608,68968.0,68954.0,0.3608]
[1730683873360,0.3608,68968.0,68967.0,0.072531]
[1730683873661,0.38882369,68968.0,68963.0,0.072534]
[1730683873863,0.02802369,68967.0,68963.0,0.072534]
[1730683874758,0.10055469,68967.0,68963.0,0.072534]
[1730683874960,0.02802369,68966.0,68964.0,0.072534]
[1730683875160,0.10055569,68966.0,68959.0,0.072538]
[1730683875355,0.10055569,68966.0,68949.0,0.3608]
[1730683875356,0.02802369,68965.0,68962.0,0.072535]
[1730683875754,0.02802369,68965.0,68963.0,0.072534]
[1730683876160,0.02802369,68965.0,68949.0,0.3608]
[1730683876365,0.02802369,68964.0,68949.0,0.3608]
[1730683876666,0.072537,68961.0,68957.0,0.072541]
[1730683876860,0.02802369,68960.0,68957.0,0.072541]
[1730683877750,0.02802369,68960.0,68959.0,0.072539]
[1730683877960,0.36192001,68968.0,68957.0,0.001]
[1730683877961,0.072532,68966.0,68957.0,0.001]
[1730683878167,0.02802369,68965.0,68961.0,0.072536]
[1730683878357,0.072534,68964.0,68961.0,0.072536]
[1730683878560,0.02802369,68963.0,68961.0,0.072536]
[1730683879160,0.02802369,68963.0,68957.0,0.001]
[1730683879161,0.3608,68962.0,68957.0,0.001]
[1730683879361,0.3608,68962.0,68940.0,0.072559]
[1730683879362,0.072541,68957.0,68940.0,0.072559]
[1730683879564,0.3608,68943.0,68938.0,0.0021756]
[1730683879951,0.3608,68943.0,68942.0,0.072557]
[1730683880864,0.3608,68952.0,68951.0,0.072547]
[1730683881771,0.433346,68952.0,68948.0,0.07255]
[1730683882060,0.433346,68952.0,68942.0,0.014]
[1730683882451,0.433346,68952.0,68951.0,0.003]
[1730683883463,0.64248475,68952.0,68951.0,0.003]
[1730683884162,0.07255,68949.0,68948.0,0.003]
[1730683884872,0.50767,68949.0,68948.0,0.003]
[1730683885058,0.072565,68935.0,68930.0,0.072569]
[1730683885261,0.072565,68935.0,68923.0,0.3608]
[1730683885262,0.072565,68935.0,68931.0,0.072568]
[1730683885569,0.072567,68932.0,68927.0,0.072572]
[1730683885767,0.054,68934.0,68923.0,0.36156]
[1730683885965,0.072571,68929.0,68914.0,0.072586]
[1730683886270,0.3608,68930.0,68929.0,0.072571]
[1730683886967,0.3608,68930.0,68919.0,0.3608]
[1730683887162,0.3608,68930.0,68926.0,0.072574]
[1730683887163,0.072571,68929.0,68926.0,0.072574]
[1730683887362,0.3608,68930.0,68916.0,1.5]
[1730683887561,0.3608,68930.0,68929.0,0.072571]
[1730683887762,0.072571,68929.0,68928.0,0.00717603]
[1730683888773,0.3608,68930.0,68928.0,0.00717603]
[1730683889072,0.3608,68930.0,68928.0,0.08374703]
[1730683889261,0.43337,68930.0,68928.0,0.08374703]
[1730683889863,0.43337,68930.0,68928.0,0.08274703]
[1730683890359,0.43337,68930.0,68928.0,0.00617603]
[1730683890559,0.43337,68930.0,68928.0,0.01117603]
[1730683890756,0.3608,68930.0,68928.0,0.01117603]
[1730683890961,0.507811,68929.0,68916.0,1.5]
[1730683891169,0.3608,68920.0,68907.0,0.072593]
[1730683891367,0.072589,68912.0,68908.0,0.072592]
[1730683891561,0.072589,68912.0,68902.0,0.00217696]
[1730683891562,0.072589,68912.0,68909.0,0.072591]
[1730683891761,0.0514,68916.0,68906.0,0.0439679]
[1730683891966,0.3608,68912.0,68902.0,1.57553596]
[1730683892167,0.072593,68908.0,68904.0,0.072597]
[1730683892375,0.072593,68908.0,68905.0,0.072596]
[1730683892665,0.3608,68912.0,68907.0,0.072594]
[1730683893263,0.072594,68907.0,68902.0,0.07477496]
[1730683893465,0.3648,68912.0,68909.0,0.002]
[1730683893675,0.3608,68912.0,68911.0,0.07259]
[1730683894063,0.3648,68912.0,68911.0,0.07259]
[1730683894463,0.3688,68912.0,68911.0,0.07259]
[1730683894760,0.008,68912.0,68911.0,0.07259]
[1730683895075,0.3608,68920.0,68910.0,0.20913875]
[1730683895260,0.3608,68931.0,68913.0,0.3608]
[1730683895464,0.0537,68936.0,68920.0,0.07258]
[1730683895670,0.04278494,68935.0,68927.0,0.072572]
[1730683895872,0.0537,68936.0,68919.0,0.3608]
[1730683896057,0.0537,68936.0,68923.0,0.20913875]
[1730683896267,0.3608,68939.0,68935.0,0.072564]
[1730683896564,0.43336,68939.0,68935.0,0.072564]
[1730683896762,0.072565,68934.0,68930.0,0.072569]
[1730683896968,0.072568,68932.0,68919.0,0.3608]
[1730683897169,0.072568,68932.0,68930.0,0.072569]
[1730683897469,0.07257,68930.0,68924.0,0.072575]
[1730683897674,0.07257,68930.0,68919.0,0.3608]
[1730683897866,0.07257,68930.0,68920.0,0.07258]
[1730683898057,0.3608,68933.0,68919.0,0.3608]
[1730683898370,0.433368,68932.0,68921.0,1.5]
[1730683898571,0.3608,68932.0,68921.0,1.5]
[1730683898963,0.3608,68932.0,68931.0,0.072568]
[1730683899270,0.001,68936.0,68935.0,0.072564]
[1730683900068,0.072561,68938.0,68936.0,0.072563]
[1730683901280,0.3608,68939.0,68932.0,0.072567]
[1730683901491,0.3608,68939.0,68935.0,0.072563]
[1730683901772,0.001,68938.0,68925.0,0.0529]
[1730683902074,0.072563,68936.0,68925.0,0.0529]
[1730683902369,0.072563,68936.0,68932.0,0.072567]
[1730683902668,0.072563,68936.0,68935.0,0.001]
[1730683903273,0.074563,68936.0,68933.0,0.072566]
[1730683903575,0.072564,68935.0,68933.0,0.072566]
[1730683903867,0.002,68936.0,68925.0,0.072575]
[1730683904074,0.002,68936.0,68935.0,0.072564]
[1730683904262,0.003,68936.0,68935.0,0.072564]
[1730683905367,0.001,68936.0,68935.0,0.072564]
[1730683905570,0.003,68936.0,68935.0,0.072564]
[1730683906177,0.001,68936.0,68935.0,0.075564]
[1730683906486,0.072541,68957.0,68947.0,0.072552]
[1730683906783,0.36204,68960.0,68959.0,0.072539]
[1730683906964,0.3608,68960.0,68959.0,0.072539]
[1730683908175,0.3618,68960.0,68959.0,0.072539]
[1730683909081,0.072542,68956.0,68949.0,0.072549]
[1730683909276,0.07254,68959.0,68948.0,0.3608]
[1730683909578,0.07254,68958.0,68955.0,0.072543]
[1730683909777,0.4089626,68960.0,68950.0,0.072548]
[1730683909971,0.072548,68950.0,68949.0,0.0008]
[1730683910171,0.072548,68950.0,68946.0,0.072553]
[1730683910389,0.0512,68949.0,68946.0,0.072553]
[1730683910881,0.072551,68948.0,68946.0,0.072553]
[1730683911468,0.072552,68947.0,68941.0,0.073397]
[1730683911681,0.072556,68943.0,68933.0,0.0505]
[1730683911980,0.0512,68949.0,68933.0,0.0505]
[1730683911981,0.0512,68949.0,68938.0,0.3608]
[1730683912275,0.072541,68957.0,68940.0,0.072559]
[1730683912485,0.072543,68955.0,68950.0,0.072548]
[1730683912869,0.001,68958.0,68939.0,0.20913875]
[1730683913073,0.21742998,68959.0,68939.0,0.20913875]
[1730683913281,0.09489098,68959.0,68945.0,0.56993875]
[1730683913477,0.001,68957.0,68946.0,0.049]
[1730683913679,0.001,68957.0,68954.0,0.072544]
[1730683913875,0.002,68955.0,68954.0,0.072544]
[1730683915284,0.07354,68959.0,68954.0,0.072544]
[1730683915480,0.07354,68959.0,68945.0,0.36256]
[1730683915481,0.003,68959.0,68945.0,0.36256]
[1730683915676,0.003,68959.0,68947.0,0.1011]
[1730683915872,0.002,68959.0,68958.0,0.07254]
[1730683916078,0.36192001,68962.0,68954.0,0.073544]
[1730683916079,0.001,68955.0,68954.0,0.073544]
[1730683916385,0.02902632,68955.0,68945.0,0.59271799]
[1730683916587,0.02902632,68955.0,68945.0,0.66451199]
[1730683916588,0.15865646,68946.0,68945.0,0.66451199]
[1730683916789,0.16838096,68946.0,68945.0,1.39963199]
[1730683916973,0.002,68959.0,68945.0,1.39963199]
[1730683916974,0.0375248,68951.0,68950.0,0.072548]
[1730683917173,0.002,68959.0,68950.0,0.28168675]
[1730683917174,0.02802412,68958.0,68950.0,0.28168675]
[1730683917381,0.001,68959.0,68956.0,0.072542]
[1730683917382,0.06355136,68957.0,68956.0,0.072542]
[1730683917679,0.001,68959.0,68956.0,0.072542]
[1730683917680,0.001,68959.0,68958.0,0.07254]
[1730683917874,0.001,68959.0,68958.0,0.64226]
[1730683918068,0.001,68959.0,68958.0,0.94226]
[1730683918272,0.0526,68979.0,68973.0,0.072524]
[1730683918273,0.0875508,68975.0,68973.0,0.072524]
[1730683918474,0.08221731,68974.0,68973.0,0.072524]
[1730683919176,0.08221731,68974.0,68973.0,0.64246275]
[1730683919486,0.08304137,68974.0,68973.0,0.64346275]
[1730683919791,0.03851976,68974.0,68973.0,0.64346275]
[1730683919977,0.03851976,68974.0,68973.0,2.14346275]
[1730683920484,0.004,68974.0,68973.0,1.935324]
[1730683920678,0.004,68974.0,68973.0,1.574524]
[1730683921688,0.004,68974.0,68973.0,0.073524]
[1730683921689,0.001,68974.0,68973.0,0.073524]
[1730683921888,0.07252,68978.0,68973.0,0.001]
[1730683922083,0.07252,68978.0,68977.0,0.07252]
[1730683922289,0.072523,68975.0,68974.0,0.072523]
[1730683922491,0.072523,68974.0,68973.0,0.002]
[1730683922681,0.49404337,68974.0,68968.0,0.072529]
[1730683922882,0.072528,68969.0,68968.0,0.072529]
[1730683923283,0.072528,68969.0,68968.0,1.07746775]
[1730683923284,0.03552447,68969.0,68968.0,1.07746775]
[1730683923485,0.3608,68987.0,68974.0,0.001]
[1730683923786,0.3608,68987.0,68986.0,0.072511]
[1730683924292,0.1,69000.0,68986.0,0.20913875]
[1730683924482,0.1,69000.0,68999.0,0.072497]
[1730683925579,0.1512,69000.0,68999.0,0.072497]
[1730683925773,0.1512,69000.0,68999.0,0.073497]
[1730683925972,0.1522,69000.0,68999.0,0.074497]
[1730683927492,0.1522,69000.0,68999.0,0.28363575]
[1730683927789,0.101,69000.0,68999.0,1.78363575]
[1730683928684,0.101,69000.0,68999.0,1.574497]
[1730683928891,0.102,69000.0,68999.0,1.574497]
[1730683929682,0.101,69000.0,68999.0,0.073497]
[1730683929889,0.103,69000.0,68999.0,0.074497]
[1730683931774,0.21101959,69000.0,68996.0,0.02642201]
[1730683931980,0.10801959,68999.0,68996.0,0.02642201]
[1730683932590,0.10801959,68999.0,68998.0,0.072498]
[1730683932803,0.14396009,68999.0,68998.0,0.072498]
[1730683932995,0.15971959,68999.0,68998.0,0.072498]
[1730683933189,0.15971959,68999.0,68996.0,0.002]
[1730683933486,0.101,69000.0,68996.0,0.002]
[1730683933487,0.25166434,68998.0,68996.0,0.28363775]
[1730683933687,0.101,69000.0,68996.0,0.28363775]
[1730683933688,0.10801959,68997.0,68996.0,0.28363875]
[1730683933880,0.10801959,68999.0,68996.0,0.28363875]
[1730683934085,0.10801959,68999.0,68998.0,0.072498]
[1730683934692,0.10901959,68999.0,68998.0,0.072498]
[1730683934991,0.11101959,68999.0,68998.0,0.072498]
[1730683935396,0.10901959,68999.0,68998.0,0.072498]
[1730683935591,0.11201959,68999.0,68998.0,0.073498]
[1730683937889,0.23652421,68999.0,68998.0,0.001]
[1730683938082,0.16402721,68999.0,68994.0,0.072502]
[1730683938281,0.433301,68995.0,68994.0,0.072502]
[1730683938479,0.46882015,68995.0,68986.0,0.13312]
[1730683938687,0.46882015,68995.0,68992.0,0.072504]
[1730683938688,0.14373062,68993.0,68992.0,0.072504]
[1730683939492,0.14373062,68993.0,68981.0,0.0021746]
[1730683939493,0.072508,68989.0,68981.0,0.0021746]
[1730683939789,0.072511,68986.0,68984.0,0.072513]
[1730683939999,0.3608,68988.0,68985.0,0.072511]
[1730683940293,0.14373062,68993.0,68991.0,0.072505]
[1730683940485,0.14373062,68993.0,68992.0,0.28164275]
[1730683940687,0.14373062,68993.0,68992.0,0.64244275]
[1730683941082,0.14473062,68993.0,68992.0,0.64244275]
[1730683941387,0.14573062,68993.0,68992.0,1.13393064]
[1730683941597,0.14573062,68993.0,68992.0,1.07728275]
[1730683942286,0.05615862,68993.0,68992.0,2.90009179]
[1730683943081,0.05615862,68993.0,68992.0,2.98526744]
[1730683944197,0.05615862,68993.0,68992.0,2.72456707]
[1730683944396,0.05615862,68993.0,68992.0,2.85768707]
[1730683944586,0.002,68993.0,68992.0,2.98279647]
[1730683944791,0.002,68993.0,68992.0,2.98345422]
[1730683944992,0.002,68993.0,68992.0,2.85836949]
[1730683945395,0.002,68993.0,68992.0,2.98354867]
[1730683945991,0.002,68993.0,68992.0,3.20084809]
[1730683946388,0.002,68993.0,68992.0,2.98354867]
[1730683946889,0.002,68993.0,68992.0,2.75342926]
[1730683948407,0.002,68993.0,68992.0,2.54429051]
[1730683948585,0.002,68993.0,68992.0,2.10945051]
[1730683948898,0.002,68993.0,68992.0,2.75342926]
[1730683949995,0.002,68993.0,68992.0,2.10945051]
[1730683950603,0.002,68993.0,68992.0,0.433304]
[1730683951707,0.002,68993.0,68984.0,0.3608]
[1730683951903,0.1018,68992.0,68984.0,0.3608]
[1730683952102,0.1018,68992.0,68991.0,0.072505]
[1730683952697,0.174304,68992.0,68991.0,0.072505]
[1730683952894,0.1018,68992.0,68987.0,0.072507]
[1730683953093,0.174304,68992.0,68989.0,0.072507]
[1730683953902,0.072505,68991.0,68990.0,0.10378068]
[1730683954201,0.1018,68992.0,68989.0,0.07131084]
[1730683954401,0.072506,68990.0,68989.0,0.07131084]
[1730683954704,0.072506,68990.0,68989.0,0.17514653]
[1730683954896,0.072506,68990.0,68989.0,0.24769703]
[1730683955097,0.072506,68990.0,68989.0,0.14381784]
[1730683955296,0.0506,68991.0,68990.0,0.072506]
[1730683955602,0.3608,69008.0,68999.0,0.072497]
[1730683955603,0.072491,69005.0,68999.0,0.072497]
[1730683955796,0.072493,69003.0,68999.0,0.24701294]
[1730683956005,0.1467,69000.0,68999.0,0.17576127]
[1730683957103,0.1467,69000.0,68999.0,0.24799044]
[1730683957403,0.1477,69000.0,68999.0,0.1767246]
[1730683957909,0.1507,69000.0,68999.0,0.1777246]
[1730683958206,0.1507,69000.0,68999.0,0.24895382]
[1730683959213,0.1507,69000.0,68999.0,0.14572622]
[1730683959506,0.1507,69000.0,68999.0,0.24899277]
[1730683960008,0.1507,69000.0,68999.0,0.14572622]
[1730683960205,0.1507,69000.0,68999.0,0.074497]
[1730683961603,0.104,69000.0,68999.0,0.074497]
[1730683962711,0.176496,69000.0,68999.0,0.074497]
[1730683962899,0.104,69000.0,68999.0,0.074497]
[1730683963505,0.176496,69000.0,68999.0,0.074497]
[1730683965710,0.4648,69000.0,68995.0,0.072501]
[1730683965908,0.0725,68996.0,68995.0,0.072501]
[1730683966109,0.46592001,69000.0,68985.0,0.00217438]
[1730683966319,0.3608,68993.0,68992.0,0.072504]
[1730683966707,0.433303,68993.0,68992.0,0.072504]
[1730683966908,0.072508,68989.0,68988.0,0.072507]
[1730683967414,0.072511,68986.0,68985.0,0.00217438]
[1730683967608,0.072513,68984.0,68983.0,0.00076]
[1730683967803,0.072531,68967.0,68964.0,0.072533]
[1730683968119,0.0965,68966.0,68965.0,0.072533]
[1730683968816,0.169032,68966.0,68965.0,0.072533]
[1730683969215,0.0965,68966.0,68965.0,0.072533]
[1730683969415,0.0965,68966.0,68965.0,0.082533]
[1730683969716,0.169032,68966.0,68965.0,0.01]
[1730683969909,0.530832,68966.0,68965.0,0.021]
[1730683970512,0.4583,68966.0,68959.0,0.00217532]
[1730683970715,0.4583,68966.0,68952.0,1.64265401]
[1730683970716,0.20913875,68963.0,68952.0,1.64265401]
[1730683970908,0.072541,68958.0,68952.0,0.14341401]
[1730683971113,0.072541,68958.0,68954.0,0.072544]
[1730683971519,0.072536,68962.0,68952.0,0.14265401]
[1730683971713,0.20913875,68963.0,68952.0,0.14265401]
[1730683972016,0.072544,68954.0,68952.0,0.14265401]
[1730683972209,0.072544,68954.0,68952.0,0.21520001]
[1730683972722,0.072545,68953.0,68952.0,0.14265401]
[1730683973107,0.507625,68953.0,68952.0,0.14265401]
[1730683974810,0.508625,68953.0,68952.0,0.14765401]
[1730683975012,0.509625,68953.0,68952.0,0.15265401]
[1730683975205,0.508625,68953.0,68952.0,0.14765401]
[1730683975517,0.515625,68953.0,68952.0,0.14865401]
[1730683976016,0.55947495,68953.0,68952.0,0.14865401]
[1730683976217,0.55947495,68953.0,68952.0,0.006]
[1730683976515,0.072559,68940.0,68939.0,0.00217566]
[1730683976815,0.433359,68940.0,68939.0,0.00217566]